Cogmind - Beta 14 @@@ ROGUE MODE // 2024.10.28 @ 20:19:19 Player: Quilark Result: Destroyed by Y-45 Defender with Beam Rifle Performance ------------- Evolutions (1) 500 Regions Visited (2) 400 Robots Destroyed (28) 140 Value Destroyed (681) 681 Prototype IDs (0) 0 Alien Tech Used (0) 0 Bonus (0) 0 TOTAL SCORE: 1721 Bonus ------- None Cogmind --------- Core Integrity 0/400 Matter 278/300 Energy 100/100 System Corruption 4% Temperature Cool (9) Movement Core (150) Ox2 Location -9/Materials Parts ------- > --- POWER (1) -------- (None) > --- PROPULSION (3) --- (None) > --- UTILITY (3) ------ Small Storage Unit Advanced Visual Processing Unit Targeting Computer > --- WEAPON (2) ------- Autogun > --- INVENTORY (8) ---- Advanced Visual Processing Unit Advanced Visual Processing Unit Advanced Visual Processing Unit Targeting Computer Datajack Peak State ------------ > --- POWER ------------ Light Ion Engine > --- PROPULSION ------- Hover Unit Hover Unit Hover Unit > --- UTILITY ---------- Small Storage Unit Advanced Visual Processing Unit Targeting Computer > --- WEAPON ----------- Medium Laser Light Assault Rifle > --- INVENTORY -------- Ion Engine Hover Unit Hover Unit Advanced Visual Processing Unit Advanced Visual Processing Unit Targeting Computer Datajack [Rating: 12] Favorites ----------- Power Light Ion Engine Engine Light Ion Engine Propulsion Light Treads Treads Light Treads Hover Unit Hover Unit Utility Small Storage Unit Storage Small Storage Unit Processor Targeting Computer Hackware Hacking Suite Weapon Light Assault Rifle Energy Gun Medium Laser Ballistic Gun Light Assault Rifle Launcher Grenade Launcher Build | -11 -10 -9 ------- Run | Yrd Mat Mat Slots Evolved 2 | . . 2 Power . | . . . Propulsion 1 | . . 1 Utility 1 | . . 1 Weapon . | . . . Parts Attached 23 | 6 8 9 Power 2 | 1 . 1 Engine 2 | 1 . 1 Core . | . . . Reactor . | . . . Propulsion 9 | 2 3 4 Treads 3 | 2 1 . Leg . | . . . Wheel . | . . . Hover 6 | . 2 4 Flight . | . . . Utility 4 | 1 1 2 Device . | . . . Storage 1 | 1 . . Processor 2 | . 1 1 Hackware 1 | . . 1 Protection . | . . . Artifact . | . . . Weapon 8 | 2 4 2 Energy Gun 2 | 1 1 . Energy Cannon . | . . . Ballistic Gun 4 | 1 1 2 Ballistic Cannon . | . . . Launcher 2 | . 2 . Special Weapon . | . . . Impact Weapon . | . . . Slashing Weapon . | . . . Piercing Weapon . | . . . Special Melee Weapon . | . . . Unidentified Prototypes . | . . . Parts Lost 14 | . 2 12 Power 2 | . . 2 Propulsion 6 | . . 6 Utility 1 | . . 1 Weapon 5 | . 2 3 Highest Loss Streak 6 | . 2 6 To Critical Strikes . | . . . Average Slot Usage (%) 81 | . 95 66 Engine 10 | . 14 7 Treads 13 | . 25 . Hover 8 | . 2 15 Storage 12 | . 14 11 Processor 14 | . 10 19 Energy Gun 5 | . 7 3 Ballistic Gun 11 | . 13 8 Launcher 3 | . 6 . Peak Build Rating 12 | 6 7 12 Average Rating 7 | 4 6 8 On Entrance 4 | . 6 7 Naked Turns . | . . . Heaviest Build 13 | 12 13 11 Greatest Support 40 | 40 40 18 Greatest Overweight (x) 3 | . . 3 Average Overweight (x) . | . . . Largest Inventory Capacity 8 | 8 8 8 Average Capacity 7 | 7 8 8 Most Carried 8 | 4 8 8 Average Carried 5 | 2 6 5 Final Capacity 8 | 8 8 8 Final Carried 6 | 4 6 5 Class Distribution -------------------- 100% | Mutant Dominant Class ---------------- Mutant | -10/Materials Mutant | -9/Materials Resources | -11 -10 -9 ----------- Run | Yrd Mat Mat Matter Collected 579 | 223 194 162 Remotely . | . . . Salvage Created 642 | . 276 366 Parts 48 | . 26 22 Haulers Intercepted . | . . . Recyclers Shooed 2 | . 2 . Parts Field Recycled . | . . . Retrieved Matter . | . . . Parts Self-Destructed . | . . . Prevented . | . . . Kills | -11 -10 -9 ------- Run | Yrd Mat Mat Combat Hostiles Destroyed 22 | . 12 10 Guns 16 | . 6 10 AOE 6 | . 6 . Classes Destroyed 5 | . 5 . Worker 2 | . 2 . Operator 2 | . 1 1 Watcher 2 | . 2 . Swarmer 8 | . 5 3 Grunt 14 | . 7 7 Best Kill Streak 4 | . 4 3 Combat Bots Only 4 | . 4 3 Max Kills in Single Turn 3 | . 3 1 Gunslinging . | . . . Exploded 3 | . 3 . Melee . | . . . Uniques/NPCs Destroyed . | . . . Combat | -11 -10 -9 -------- Run | Yrd Mat Mat Hostile Shots Fired 172 | . 44 128 Missed 57 | . 10 47 Damage Taken 1608 | . 600 1008 Core 504 | . 95 409 Absorbed by Shields . | . . . Core Remaining (%) 81 | 100 62 . Volleys Fired 84 | . 29 55 Largest 2 | . 2 2 Hottest 70 | . 70 70 Shots Fired 132 | . 56 76 Gun 120 | . 44 76 Cannon . | . . . Launcher 12 | . 12 . Special . | . . . Kinetic 84 | . 29 55 Thermal 36 | . 15 21 Explosive 12 | . 12 . Electromagnetic . | . . . Robot Hit Streak 10 | . 10 10 Robot Miss Streak 4 | . 3 4 Penetration Max . | . . . Secondary Targets 2 | . . 2 Max Gunslinging Chain 1 | . . 1 Shots Hit Robots 86 | . 34 52 Core Hits 58 | . 34 24 Critical Kills . | . . . Critical Parts Destroyed 1 | . . 1 Critical Strikes 2 | . . 2 Burn 1 | . . 1 Destroy 1 | . . 1 Melee Attacks . | . . . Impact . | . . . Slashing . | . . . Piercing . | . . . Sneak Attacks . | . . . Combat Hostiles . | . . . Follow-up Attacks . | . . . Damage Inflicted 1510 | . 898 612 Guns 811 | . 298 513 Cannons . | . . . Explosions 600 | . 600 . Melee . | . . . Ramming 99 | . . 99 Kinetic 454 | . 125 329 Thermal 357 | . 173 184 Explosive 600 | . 600 . Electromagnetic . | . . . Impact . | . . . Slashing . | . . . Piercing . | . . . Highest Corruption 4 | . 1 4 Average Corruption 1 | . 1 2 Corruption Purged . | . . . Corruption Blocked . | . . . Effects 7 | . 5 2 Message Errors 1 | . 1 . Matter Fused 2 | . 2 . Heat Flow Errors 2 | . 1 1 Energy Discharges 1 | . 1 . Data Loss (minor) 1 | . . 1 Overload Shots . | . . . Overflow Damage 2 | . 2 . Projectiles . | . . . Explosions 2 | . 2 . Melee . | . . . Knockbacks 1 | . . 1 Impact 1 | . . 1 Kinetic . | . . . Secondary . | . . . Self-Inflicted Damage 222 | . 176 46 Shots 6 | . 6 . Rammed 16 | . . 16 Targets Rammed 16 | . . 16 Kicked . | . . . Crushed . | . . . Highest Temperature 285 | . 285 204 Average Temperature 70 | . 65 74 Received Heat Transfer 594 | . 183 411 Siege Activations . | . . . Robots Corrupted . | . . . Combat Hostiles . | . . . Parts Fried . | . . . Impact Corruptions . | . . . Robots Melted . | . . . Combat Hostiles . | . . . Parts Melted 1 | . . 1 Heat Transferred 1147 | . 518 629 Parts Sabotaged . | . . . Parts Stolen . | . . . Parts Stripped . | . . . Power Chain Reactions . | . . . Alert | -11 -10 -9 ------- Run | Yrd Mat Mat Peak Influence 392 | . 306 392 Initial 97 | . . 97 Average 173 | . 121 257 Maximum Alert Level 1 | . 1 1 Low Security (%) 58 | 100 72 35 Level 1 41 | . 27 64 Level 2 . | . . . Level 3 . | . . . Level 4 . | . . . Level 5 . | . . . High Security . | . . . Max Security . | . . . Squads Dispatched 4 | . 2 2 Investigation 1 | . . 1 Extermination . | . . . Reinforcement 3 | . 2 1 Assault . | . . . Garrison . | . . . Intercept . | . . . Searches Triggered . | . . . Construction Impeded . | . . . Haulers Reinforced . | . . . Active Scanning Responses . | . . . Cargo Convoy Interrupts . | . . . Stealth | -11 -10 -9 --------- Run | Yrd Mat Mat Distress Signals 4 | . 2 2 Communications Jammed . | . . . Distress Signals . | . . . Times Spotted 43 | . 18 25 Peak Tracking Total 5 | . 5 5 Tactical Retreats 3 | . . 3 Traps | -11 -10 -9 ------- Run | Yrd Mat Mat Traps Triggered 4 | . 2 2 Indirectly . | . . . Trap Hack Attempts . | . . . Triggered . | . . . Disarmed . | . . . Reprogrammed . | . . . Reused . | . . . Traps Extracted . | . . . Installed . | . . . Triggered . | . . . Machines | -11 -10 -9 ---------- Run | Yrd Mat Mat Machines Disabled 2 | . 2 . Max in Single Turn 2 | . 2 . Machines Repaired . | . . . Machines Dismantled . | . . . Machines Sabotaged . | . . . Overloaded Fab Kills . | . . . Hacking | -11 -10 -9 --------- Run | Yrd Mat Mat Machines Accessed 3 | . 2 1 Terminals 3 | . 2 1 Fabricators . | . . . Repair Stations . | . . . Recycling Units . | . . . Scanalyzers . | . . . Garrison Access . | . . . Total Hacks 7 | . 5 2 Successful 2 | . 1 1 Failed 5 | . 4 1 Catastrophic . | . . . Database Lockouts . | . . . Manual . | . . . Terminals 7 | . 5 2 Fabricators . | . . . Repair Stations . | . . . Recycling Units . | . . . Scanalyzers . | . . . Garrison Access . | . . . Terminal Hacks 2 | . 1 1 Record 2 | . 1 1 Fabricator Hacks . | . . . Repair Station Hacks . | . . . Recycling Unit Hacks . | . . . Scanalyzer . | . . . Garrison Access Hacks . | . . . Unauthorized Hacks . | . . . Terminals . | . . . Fabricators . | . . . Repair Stations . | . . . Recycling Units . | . . . Scanalyzers . | . . . Garrison Access . | . . . Data Cores Recovered . | . . . Used . | . . . Hacking Detections 3 | . 2 1 Full Trace Events . | . . . Feedback Events . | . . . Feedback Blocked . | . . . Robot Schematics Acquired . | . . . Robots Built . | . . . Authchips . | . . . Time . | . . . Total Robot Build Rating . | . . . Part Schematics Acquired . | . . . Parts Built . | . . . Authchips . | . . . Time . | . . . Total Part Build Rating . | . . . Parts Repaired . | . . . Time . | . . . Parts Recycled . | . . . Recycled Matter . | . . . Retrieved Matter . | . . . Retrieved Components . | . . . Parts Scanalyzed . | . . . Part Schematics Acquired . | . . . Parts Damaged . | . . . Bothacking | -11 -10 -9 ------------ Run | Yrd Mat Mat Used RIF Installer . | . . . Robots Hacked . | . . . Non-combat . | . . . Combat . | . . . Robot Hacks Applied . | . . . Relay Couplers Released . | . . . Fabnet Peak Effective % . | . . . Robots Rewired . | . . . Allies Hacked . | . . . Hacks Repelled . | . . . Allies | -11 -10 -9 -------- Run | Yrd Mat Mat Total Allies . | . . . Largest Group . | . . . Highest-Rated Group . | . . . Highest-Rated Ally . | . . . Total Orders . | . . . Ally Attacks . | . . . Total Damage . | . . . Kills . | . . . Allies Corrupted . | . . . Allies Melted . | . . . Intel | -11 -10 -9 ------- Run | Yrd Mat Mat Robot Analysis Total . | . . . Derelict Logs Recovered . | . . . Drone Launches . | . . . Drone Recoveries . | . . . Exploration | -11 -10 -9 ------------- Run | Yrd Mat Mat Turns Passed 1092 | 75 532 485 Spaces Moved 802 | 41 296 465 Core 116 | 2 . 114 Treads 289 | 39 250 . Legs . | . . . Wheels . | . . . Hover 397 | . 46 351 Flight . | . . . Fastest Speed 50 | 50 56 52 Average Speed 102 | 154 143 71 Slowest Speed 200 | 160 160 200 Overloaded Moves . | . . . Propulsion Burnouts . | . . . Robots Hopped . | . . . Cave-ins Triggered . | . . . Exploration Rate (%) 32 | 3 51 42 Regions Visited 2 Branch Regions . Pre-discovered Areas . | . . . Known Exits Taken . | . . . Unknown Exits Taken 2 | 1 1 . Scrap Searched . | . . . Spaces Dug . | . . . Terrain Destroyed 68 | . 68 . Melee . | . . . Projectile . | . . . AOE 68 | . 68 . Terrain Rammed . | . . . Walls Destroyed . | . . . Machines Disabled . | . . . Actions | -11 -10 -9 --------- Run | Yrd Mat Mat Total 951 | 50 350 551 Wait 4 | . 3 1 Move 800 | 40 295 465 Hop . | . . . Pick Up 17 | 4 8 5 Fast Attach 12 | 6 3 3 Attach 11 | . 5 6 Detach 3 | . 3 . Swap . | . . . Drop 4 | . 4 . Fire 84 | . 29 55 Melee . | . . . Ram 16 | . . 16 Kick . | . . . Crush . | . . . Escape Stasis . | . . . Rewire . | . . . Trap . | . . . Miscellaneous . | . . . Route ------- -11/Scrapyard -10/Materials (discovered 3 exits: *Mat x2 / [*Min]) -9/Materials (discovered 2 exits: [*Min] / [*Sto]) History --------- Turn | Location | Event 45 | -11/Scrapyard | Discovered new exit (range 15) 76 | -11/Scrapyard | Entered Materials 304 | -10/Materials | Build established: Mutant 352 | -10/Materials | Discovered new exit (range 6) 371 | -10/Materials | Discovered new exit (range 13) 590 | -10/Materials | Discovered new exit (range 14) 608 | -10/Materials | Entered another Materials area 608 | -9/Materials | Evolved 2 slots: Propulsion x1, Utility x1 824 | -9/Materials | Core integrity fell below 50% 826 | -9/Materials | Lost 6 parts (1p3n2w) 891 | -9/Materials | Discovered new exit (range 6) 964 | -9/Materials | Discovered new exit (range 6) 1013 | -9/Materials | Core integrity fell below 20% 1018 | -9/Materials | Lost 4 parts (1p2n1w) 1093 | -9/Materials | Destroyed by Y-45 Defender with Beam Rifle Last Messages --------------- 00910_ System corrupted: Heat flow error (+221). 00933_ W-16 Scout sends out distress signal. 00952_ Slammed into K-01 Serf. 00964_ EXIT=FOUND 00975_ Lgt. Assault Rifle destroyed. 00981_ Hover Unit destroyed. 00984_ Slammed into Y-45 Defender. 00984_ Destabilizing: System interference. 00984_ Targeting Computer temporarily disabled. 00985_ Slammed into Y-45 Defender. 00986_ Destabilizing: System corrupted (+2). 00987_ Hover Unit destroyed. 00987_ Ion Engine destroyed. 00987_ Slammed into Y-45 Defender. 00988_ Slammed into U-05 Engineer. 00990_ Slammed into T-07 Excavator. 00993_ Slammed into K-01 Serf. 01045_ W-16 Scout sends out distress signal. 01065_ Acquired Autogun. 01076_ G-34 Mercenary destroyed. Map ----- +----------------------------------------------------+ | #????????????????????????????????????????????????? | | #????????????? T ????????????????????????????????? | | #????????????? ???????????????????????????????? | | #????????????? ???????????????????????????????? | | #????????????? #???????????????????????????????? | | #????????????? #???????????????????????????????? | | #????????????# #???????????????????????????????? | | ?????????????# /???????????????????????????????? | | ?????????????# #???????????????????????????????? | | #####????????# #???????????????????????????????? | | # #????????# ####????????????????????????????? | | # #????????# ?????????????????????????????? | | # #????????+ ??????????????????????????????? | | # #????????# ???????????????????????????????? | | # #????????# #???????????????????????????????? | | # #????????# #???????????????????????????????? | | ? #????????# #???????????????????????????????? | | ###+########## #???????????????????????????????? | | #???????????????????????????????? | | #???????????????????????????????? | | #???????????????????????????????? | | ###T####+#+#### ##???????????????????????????????? | | ??#### # #???????###########??????????????? | | ?????# # #???????# #??????????????? | | ?????# # ######### #??????????????? | | ?????# "" # Y Y[%/@ #??????????????? | | ?????# "" ########### ! +??????????????? | | ?????# T" #?????????# #??????????????? | | ?????# "" #?????????# #??????????????? | | ?????# "" #?????????# / #??????????????? | | ?????# #?????????# #??????????????? | | ?????##########?????????###########??????????????? | | ?????????????????????????????????????????????????? | | ?????????????????????????????????????????????????? | | ?????????????????????????????????????????????????? | | | | | | | | | | | | | | | | | | | | | | | | | | | | | | | +----------------------------------------------------+ Best States ------------- Heat Dissipation 28 Energy Generation 10 Energy Capacity 250 Matter Stores 300 Matter Capacity 300 Sight Range 20 Terrain Scan Density 10 Evasion (%) 54 Targeting Accuracy 5 Recoil Reduction 2 Offensive Hacking 10 Item Schematics ----------------- None Robot Schematics ------------------ None Fabricated ------------ Nothing Alien Tech Used ----------------- None Achievements -------------- None Challenges ------------ None Game ------ Seed IonicAlphaFrame Manual? 0 Play Time 00:12:42 Cumulative 2.0 hours Start 2024.10.28 @ 20:06:29 End 2024.10.28 @ 20:19:19 Sessions 1 Manual Loads 0 Difficulty Rogue Special Mode None Game No. 10 Rogue 8 Adventurer 2 Explorer 0 Win Type - Total 0 Types 0/0/0/0/0/0/0/0/0 Lore% 2 Gallery% 8 Achievement% 12 Wizard Run 0 Options --------- Layout 1 ASCII 0 Keyboard 1 Movement Numpad Keybinds 0 Fullscreen 2 Font 18/SmallcapsGlow Map View 56x38 Zoom Use 0% Tactical HUD 1 Map Filters NONE Filters NONE Steam 1 RUN: 7d580104-0f2e-46de-8e1e-d4896864332e